bitfinex-derivatives/quotes_ETHF0:USTF0_20241102
["timestamp","ask_amount","ask_price","bid_price","bid_amount"]
[1730527891029,1.14773064,2510.9,2510.8,2.90745259]
[1730527891225,1.14773064,2510.9,2510.8,1.91390495]
[1730527891532,1.14773064,2510.9,2510.8,1.66474997]
[1730527892731,1.14773064,2510.9,2510.8,1.91389623]
[1730527892926,1.14773064,2510.9,2510.8,1.91389881]
[1730527893129,1.14773064,2510.9,2510.8,2.90713058]
[1730527893329,1.14773064,2510.9,2510.8,1.91389881]
[1730527893626,1.14773064,2510.9,2510.8,2.90697774]
[1730527893826,1.14773064,2510.9,2510.8,0.71979]
[1730527894035,1.14773064,2510.9,2510.8,2.65745911]
[1730527894333,1.14773064,2510.9,2510.8,6.88900179]
[1730527895033,3.2078,2511.0,2510.9,0.27888]
[1730527895226,3.2078,2511.0,2510.9,1.22345434]
[1730527897328,3.2078,2511.0,2510.9,0.60277011]
[1730527897829,3.2078,2511.0,2510.9,0.27888]
[1730527902133,3.2078,2511.0,2510.9,0.60276156]
[1730527904936,1.14773064,2511.1,2510.9,0.60276156]
[1730527904937,1.14773064,2511.1,2511.0,0.27887]
[1730527905125,4.35553064,2511.1,2511.0,0.40343983]
[1730527905831,3.2078,2511.1,2511.0,0.40344085]
[1730527906033,3.13599352,2511.4,2511.3,0.27883]
[1730527906336,1.14773064,2511.5,2511.4,0.27882]
[1730527906738,1.14773064,2511.5,2511.4,0.40336928]
[1730527907431,1.14773064,2511.5,2511.4,0.27882]
[1730527907636,1.14773064,2511.5,2511.4,0.40336897]
[1730527907935,1.14773064,2511.5,2511.4,0.27882]
[1730527914029,1.84644064,2511.5,2511.4,0.27882]
[1730527914229,1.84644064,2511.5,2511.3,0.27883]
[1730527914432,1.60493064,2511.4,2511.3,0.27883]
[1730527916932,1.88375064,2511.4,2511.3,0.27883]
[1730527917237,1.60493064,2511.4,2511.3,0.27883]
[1730527917536,1.88375064,2511.4,2511.3,0.27883]
[1730527918138,5.58653064,2511.4,2510.7,0.69724]
[1730527918333,1.14773064,2511.0,2510.9,0.27888]
[1730527918532,1.14773064,2511.0,2510.9,0.40343747]
[1730527918932,1.59173064,2511.0,2510.9,0.40343747]
[1730527920425,1.59173064,2511.0,2510.9,0.12455747]
[1730527920627,1.59173064,2511.0,2510.9,0.27888]
[1730527921438,1.59173064,2511.0,2510.9,0.40345666]
[1730527922243,4.79953064,2511.0,2510.9,0.40345666]
[1730527923333,4.79953064,2511.0,2510.9,0.27888]
[1730527923538,5.07840064,2511.0,2510.9,0.4034552]
[1730527923931,5.07840064,2511.0,2510.9,0.1245752]
[1730527925940,4.79953064,2511.0,2510.9,0.4034552]
[1730527926538,1.59173064,2511.0,2510.9,0.1245752]
[1730527926740,5.07840064,2511.0,2510.9,0.1245752]
[1730527927144,5.07840064,2511.0,2510.9,0.12457449]
[1730527927342,5.07840064,2511.0,2510.9,0.40345449]
[1730527927541,4.79953064,2511.0,2510.9,0.40345542]
[1730527927741,5.07840064,2511.0,2510.9,0.40345542]
[1730527928346,4.79953064,2511.0,2510.9,0.40345542]
[1730527929553,1.59173064,2511.0,2510.9,0.40345542]
[1730527930043,4.79953064,2511.0,2510.9,0.40345542]
[1730527930244,4.79953064,2511.0,2510.9,0.60277615]
[1730527930450,4.79953064,2511.0,2510.9,1.223336]
[1730527931052,4.79953064,2511.0,2510.9,0.27888]
[1730527931350,1.59173064,2511.0,2510.9,1.22335153]
[1730527931750,5.07840064,2511.0,2510.9,1.22335153]
[1730527932252,4.79953064,2511.0,2510.9,1.22335153]
[1730527933649,4.79953064,2511.0,2510.9,0.94447153]
[1730527933856,5.07840064,2511.0,2510.9,0.94447153]
[1730527934151,5.07840064,2511.0,2510.9,1.22335153]
[1730527934553,1.87060064,2511.0,2510.9,0.94447153]
[1730527934750,5.07840064,2511.0,2510.9,0.94447153]
[1730527935059,5.07840064,2511.0,2510.9,0.9444698]
[1730527935252,8.21439416,2511.0,2510.9,0.9444698]
[1730527935656,8.21439416,2511.0,2510.9,0.32389575]
[1730527935851,8.21439416,2511.0,2510.9,0.12457529]
[1730527936552,8.21439416,2511.0,2510.9,0.60277932]
[1730527936752,7.93552416,2511.0,2510.9,1.22343243]
[1730527937145,4.79953064,2511.0,2510.9,1.22343243]
[1730527937348,7.93552416,2511.0,2510.9,1.22342114]
[1730527937850,4.79953064,2511.0,2510.9,1.22342114]
[1730527938648,4.79953064,2511.0,2510.9,1.02409632]
[1730527938860,4.79953064,2511.0,2510.9,1.22341807]
[1730527939060,4.79953064,2511.0,2510.9,0.27888]
[1730527939250,4.79953064,2511.0,2510.9,1.22341639]
[1730527939852,1.59173064,2511.0,2510.9,1.22341639]
[1730527940054,4.79953064,2511.0,2510.9,1.22341639]
[1730527942655,1.59173064,2511.0,2510.9,1.22341211]
[1730527942865,7.93552416,2511.0,2510.9,0.40345647]
[1730527943158,4.79953064,2511.0,2510.9,1.02407446]
[1730527943359,4.79953064,2511.0,2510.9,1.22339717]
[1730527946261,4.79953064,2511.0,2510.9,0.40345647]
[1730527946460,4.79953064,2511.0,2510.9,0.27888]
[1730527946663,1.59173064,2511.0,2510.9,0.40345887]
[1730527947059,4.79953064,2511.0,2510.9,0.40345887]
[1730527947655,5.07840064,2511.0,2510.9,0.40345887]
[1730527948057,4.79953064,2511.0,2510.9,0.40345887]
[1730527948462,4.79953064,2511.0,2510.9,1.22344434]
[1730527948666,1.59173064,2511.0,2510.9,0.6027852]
[1730527948861,4.79953064,2511.0,2510.9,1.22344741]
[1730527949069,4.79953064,2511.0,2510.9,0.6027852]
[1730527949761,1.59173064,2511.0,2510.9,0.6027852]
[1730527950155,4.79953064,2511.0,2510.9,0.6027852]
[1730527950358,4.79953064,2511.0,2510.9,0.60278633]
[1730527950663,5.07840064,2511.0,2510.9,0.40345936]
[1730527950869,5.07840064,2511.0,2510.9,0.40345937]
[1730527951169,8.21439416,2511.0,2510.9,0.40345937]
[1730527951371,5.07840064,2511.0,2510.9,0.40345937]
[1730527951876,4.79953064,2511.0,2510.9,0.40345937]
[1730527953162,4.79953064,2511.0,2510.9,0.60278583]
[1730527953465,5.07840064,2511.0,2510.9,1.22349066]
[1730527953962,5.07840064,2511.0,2510.9,0.47820646]
[1730527954169,5.00659416,2511.0,2510.9,1.02416667]
[1730527954372,5.00659416,2511.0,2510.9,1.22349334]
[1730527954668,8.21439416,2511.0,2510.9,1.22349334]
[1730527954868,7.93552416,2511.0,2510.9,1.22349334]
[1730527956363,7.93552416,2511.0,2510.9,0.94461334]
[1730527956570,8.35882416,2511.0,2510.9,0.94461334]
[1730527956764,8.35882416,2511.0,2510.9,1.22349334]
[1730527956969,8.63769416,2511.0,2510.9,1.22349334]
[1730527957660,5.42989416,2511.0,2510.9,1.22349334]
[1730527957967,5.42989416,2511.0,2510.9,1.22375726]
[1730527957968,8.63769416,2511.0,2510.9,1.22375726]
[1730527958470,8.63769416,2511.0,2510.9,0.94487726]
[1730527958873,5.42989416,2511.0,2510.9,0.94487726]
[1730527959073,8.63769416,2511.0,2510.9,0.94487726]
[1730527959264,8.63769416,2511.0,2510.9,1.22375726]
[1730527959969,5.42989416,2511.0,2510.9,1.22375726]
[1730527960274,5.22283064,2511.0,2510.9,1.22375726]
[1730527960470,5.50170064,2511.0,2510.9,1.22375726]
[1730527960667,8.63642418,2511.0,2510.9,1.22375726]
[1730527961166,5.50170064,2511.0,2510.9,1.22375726]
[1730527961866,5.50170064,2511.0,2510.9,1.47291606]
[1730527962267,8.88209364,2511.0,2510.9,1.47291606]
[1730527962669,5.67429364,2511.0,2510.9,1.47291606]
[1730527962868,8.88209364,2511.0,2510.9,0.85194459]
[1730527963266,5.67429364,2511.0,2510.9,0.85194459]
[1730527963559,5.67429364,2511.0,2510.6,1.36512895]
[1730527963560,0.27888,2510.9,2510.8,0.27888]
[1730527963971,8.88209364,2511.0,2510.8,0.27888]
[1730527964173,3.659263,2510.9,2510.8,0.27888]
[1730527964766,6.867063,2510.9,2510.8,0.27888]
[1730527966170,3.659263,2510.9,2510.8,0.27888]
[1730527966567,6.867063,2510.9,2510.8,0.27888]
[1730527967068,3.659263,2510.9,2510.8,0.27888]
[1730527967267,6.867063,2510.9,2510.8,0.27888]
[1730527967871,3.659263,2510.9,2510.8,0.27888]
[1730527968177,3.659263,2510.9,2510.8,3.14084111]
[1730527968373,6.867063,2510.9,2510.8,3.14084111]
[1730527968571,3.659263,2510.9,2510.8,3.14084111]
[1730527969271,6.867063,2510.9,2510.8,3.14084111]
[1730527969476,6.867063,2510.9,2510.8,0.27888]
[1730527969676,3.659263,2510.9,2510.8,0.27888]
[1730527969977,6.867063,2510.9,2510.8,0.27888]
[1730527970875,3.659263,2510.9,2510.8,0.27888]
[1730527971175,6.867063,2510.9,2510.8,0.27888]
[1730527971571,3.659263,2510.9,2510.8,0.27888]
[1730527971772,6.867063,2510.9,2510.8,3.14090048]
[1730527971974,3.659263,2510.9,2510.8,3.14090048]
[1730527972378,6.867063,2510.9,2510.8,3.14090048]
[1730527972679,6.867063,2510.9,2510.8,3.71396979]
[1730527972872,6.867063,2510.9,2510.8,3.1408924]
[1730527973177,6.867063,2510.9,2510.8,3.71396031]
[1730527973375,6.867063,2510.9,2510.8,3.43508031]
[1730527973376,3.659263,2510.9,2510.8,3.43508031]
[1730527973578,7.145943,2510.9,2510.8,3.43508031]
[1730527973777,6.867063,2510.9,2510.8,3.71397031]
[1730527976673,6.867063,2510.9,2510.8,3.71403135]
[1730527976674,3.659263,2510.9,2510.8,3.71403135]
[1730527976875,6.867063,2510.9,2510.8,3.71403135]
[1730527977278,3.2078,2510.9,2510.8,3.7806892]
[1730527977695,6.34629379,2510.9,2510.8,3.7806892]
[1730527980286,6.34629379,2510.9,2510.8,3.78064898]
[1730527980581,6.34629379,2510.9,2510.8,0.27889]
[1730527980787,6.34629379,2510.9,2510.8,3.75548986]
[1730527981587,3.13849379,2510.9,2510.8,3.75548986]
[1730527982587,3.13849379,2510.9,2510.8,1.26563022]
[1730527982780,8.01479364,2511.0,2510.9,0.27888]
[1730527982975,8.01479364,2511.0,2510.9,2.90968223]
[1730527983185,8.01479364,2511.0,2510.9,3.36328223]
[1730527984386,8.01479364,2511.0,2510.9,4.59663029]
[1730527984590,8.01479364,2511.0,2510.9,4.59663141]
[1730527985088,8.01479364,2511.0,2510.9,3.36328223]
[1730527986188,8.01479364,2511.0,2510.9,3.03938476]
[1730527986382,4.35553064,2511.0,2510.9,2.74647629]
[1730527986583,4.35553064,2511.0,2510.9,3.36313289]
[1730527986784,8.01479364,2511.0,2510.9,4.59645979]
[1730527987289,8.01479364,2511.0,2510.9,3.36313289]
[1730527988090,4.80699364,2511.0,2510.9,3.36313289]
[1730527988290,8.01479364,2511.0,2510.9,3.36313289]
[1730527989685,4.35553064,2511.0,2510.9,3.36313289]
[1730527989880,4.35553064,2511.0,2510.9,1.18678]
[1730527990185,8.01479364,2511.0,2510.9,3.36300804]
[1730527990388,4.35553064,2511.0,2510.9,3.36300804]
[1730527990588,8.01479364,2511.0,2510.9,3.36300804]
[1730527992797,4.80699364,2511.0,2510.9,3.36300804]
[1730527992990,8.01479364,2511.0,2510.9,3.36300804]
[1730527993292,4.35553064,2511.0,2510.9,4.59615856]
[1730527993490,4.35553064,2511.0,2510.9,3.36286273]
[1730527993694,4.35553064,2511.0,2510.9,4.59597208]
[1730527993895,7.49315246,2511.0,2510.9,1.92790871]
[1730527994193,4.35553064,2511.0,2510.9,3.36293172]
[1730527995591,1.14773064,2511.0,2510.9,3.36293172]
[1730527995792,4.35553064,2511.0,2510.9,3.36293172]
[1730527996204,1.14773064,2511.0,2510.9,3.36286778]
[1730527996497,4.35553064,2511.0,2510.9,3.36286778]
[1730527997395,4.35553064,2511.0,2510.9,3.36286259]
[1730527997993,8.01479364,2511.0,2510.9,3.36286259]
[1730528000598,4.35553064,2511.0,2510.9,3.36286259]
[1730528000894,4.35553064,2511.0,2510.9,3.36329698]
[1730528001088,8.01479364,2511.0,2510.9,3.36329698]
[1730528001494,4.80699364,2511.0,2510.9,3.36329698]
[1730528001793,8.01479364,2511.0,2510.9,3.36329698]
[1730528002204,4.35553064,2511.0,2510.9,3.36329698]
[1730528002700,8.01479364,2511.0,2510.9,3.36329698]
[1730528003002,4.35553064,2511.0,2510.9,3.36329698]
[1730528003498,8.01479364,2511.0,2510.9,3.36329698]
[1730528003801,4.35553064,2511.0,2510.9,3.36329698]
[1730528003995,8.01479364,2511.0,2510.9,3.36329698]
[1730528004197,4.80699364,2511.0,2510.9,1.31135794]
[1730528004404,8.01479364,2511.0,2510.9,1.75982942]
[1730528004591,8.01479364,2511.0,2510.9,3.36320688]
[1730528004801,8.01479364,2511.0,2510.9,3.81168848]
[1730528004996,8.01479364,2511.0,2510.9,3.36321502]
[1730528005696,8.44149364,2511.0,2510.9,3.36321502]
[1730528007494,8.44149364,2511.0,2510.9,2.90891502]
[1730528009100,6.867063,2511.0,2510.9,2.90891502]
[1730528009300,3.2078,2511.0,2510.9,2.90891502]
[1730528009508,3.2078,2511.0,2510.9,4.14226238]
[1730528009704,6.34535137,2511.0,2510.9,4.14226238]
[1730528010206,3.2078,2511.0,2510.9,4.14226238]
[1730528010597,6.34536134,2511.0,2510.9,4.14226238]
[1730528011907,6.34536134,2511.0,2510.9,4.14202971]
[1730528012104,3.13756134,2511.0,2510.9,4.14202971]
[1730528012303,6.34536134,2511.0,2510.9,4.14202971]
[1730528013402,6.34536134,2511.0,2510.9,3.94271321]
[1730528013609,6.34536134,2511.0,2510.9,4.14202838]
[1730528015411,3.13756134,2511.0,2510.9,4.14202838]
[1730528015601,6.34536134,2511.0,2510.9,4.14202644]
[1730528016011,6.34536134,2511.0,2510.9,4.14182335]
[1730528016607,3.13756134,2511.0,2510.9,4.14182335]
[1730528016802,6.34536134,2511.0,2510.9,4.14182335]
[1730528017600,3.13756134,2511.0,2510.9,4.14182335]
[1730528017909,6.34536134,2511.0,2510.9,4.14182335]
[1730528019311,6.34536134,2511.0,2510.9,4.14208914]
[1730528020003,3.13756134,2511.0,2510.9,4.14208914]
[1730528020205,6.34536134,2511.0,2510.9,4.14208914]
[1730528021112,3.13756134,2511.0,2510.9,4.14208914]
[1730528021310,6.34536134,2511.0,2510.9,4.14208914]
[1730528023006,3.13756134,2511.0,2510.9,4.14216094]
[1730528023309,6.34536134,2511.0,2510.9,4.14216094]
[1730528023510,3.13756134,2511.0,2510.9,4.14216094]
[1730528023709,6.34536134,2511.0,2510.9,4.14216094]
[1730528024408,6.34536134,2511.0,2510.9,4.14214712]
[1730528026512,3.13756134,2511.0,2510.9,2.33952869]
[1730528026705,3.13756134,2511.0,2510.9,2.538845]
[1730528026906,3.13756134,2511.0,2510.9,5.99218192]
[1730528026907,6.34536134,2511.0,2510.9,5.99218192]
[1730528027518,6.34536134,2511.0,2510.9,5.25970192]
[1730528027519,7.77196198,2511.0,2510.9,5.25970192]
[1730528027815,4.63440064,2511.0,2510.9,4.02636643]
[1730528028613,4.63440064,2511.0,2510.9,4.30524643]
[1730528029414,4.63440064,2511.0,2510.9,3.73221204]
[1730528029712,4.63440064,2511.0,2510.9,4.3052831]
[1730528029913,4.63440064,2511.0,2510.9,2.17640719]
[1730528030307,4.63440064,2511.0,2510.9,2.45534739]
[1730528031418,1.42660064,2511.0,2510.9,2.45534739]
[1730528031818,4.63440064,2511.0,2510.9,2.45534739]
[1730528032618,1.42660064,2511.0,2510.9,2.45534739]
[1730528032920,4.63440064,2511.0,2510.9,2.45534739]
[1730528033321,1.42660064,2511.0,2510.9,2.45534739]
[1730528033922,1.42660064,2511.0,2510.9,2.45537896]
[1730528034124,4.63440064,2511.0,2510.9,2.45537896]
[1730528034517,1.42660064,2511.0,2510.9,2.45537896]
[1730528035025,4.63440064,2511.0,2510.9,2.45537896]
[1730528036520,1.14773064,2511.0,2510.9,2.45537896]
[1730528036719,4.35553064,2511.0,2510.9,2.45537896]
[1730528037224,1.14773064,2511.0,2510.9,2.45537896]
[1730528037422,4.35553064,2511.0,2510.9,2.45537896]
[1730528037616,4.35553064,2511.0,2510.9,2.44143382]
[1730528037918,4.35553064,2511.0,2510.9,2.84655874]
[1730528038121,1.14773064,2511.0,2510.9,4.03093481]
[1730528038323,4.35553064,2511.0,2510.9,4.03093481]
[1730528039916,4.35553064,2511.0,2510.9,2.44142631]
[1730528040126,4.35553064,2511.0,2510.9,2.44141906]
[1730528041523,1.14773064,2511.0,2510.9,2.44141906]
[1730528043728,1.14773064,2511.0,2510.9,0.85191297]
[1730528043922,1.14773064,2511.0,2510.9,2.4413944]
[1730528046529,4.63440064,2511.0,2510.9,2.4413944]
[1730528047432,4.63440064,2511.0,2510.9,1.83014779]
[1730528047728,4.63440064,2511.0,2510.9,0.27888]
[1730528047930,8.29461754,2511.0,2510.9,3.05293992]
[1730528048131,5.08681754,2511.0,2510.9,3.05293992]
[1730528048430,4.35553064,2511.0,2510.9,3.05293992]
[1730528049930,4.35553064,2511.0,2510.9,1.86850708]
[1730528050132,4.35553064,2511.0,2510.9,2.4415474]
[1730528050332,4.63440064,2511.0,2510.9,2.4415474]
[1730528050730,8.29461754,2511.0,2510.9,2.4415474]
[1730528050932,8.29461754,2511.0,2510.9,2.1626674]
[1730528051737,8.29461754,2511.0,2510.9,2.4415474]
[1730528052331,12.27701754,2511.0,2510.9,1.18443535]
[1730528052639,8.61680064,2511.0,2510.9,2.1625832]
[1730528052833,12.27749207,2511.0,2510.9,2.1625832]
[1730528053131,12.27749207,2511.0,2510.9,0.93528738]
[1730528053337,12.27749207,2511.0,2510.9,1.18445138]
[1730528053638,12.27749207,2511.0,2510.9,0.93528738]
[1730528053839,8.61680064,2511.0,2510.9,0.93528738]
[1730528054138,12.27710883,2511.0,2510.9,0.93528738]
[1730528054336,11.99823883,2511.0,2510.6,0.27891]
[1730528054536,4.56403713,2510.8,2510.7,0.9780242]
[1730528054733,4.56403713,2510.8,2510.7,3.38488242]
[1730528054939,5.90013713,2510.8,2510.7,2.16237143]
[1730528055644,2.76273064,2510.8,2510.7,0.93518121]
[1730528055941,10.40623883,2510.8,2510.7,0.93518121]
[1730528057040,6.74593064,2510.8,2510.7,0.93518121]
[1730528057344,10.40438039,2510.8,2510.7,0.93518121]
[1730528058036,10.40438039,2510.8,2510.7,0.93501308]
[1730528058242,10.40438039,2510.8,2510.7,0.32393627]
[1730528058441,10.40438039,2510.8,2510.7,0.93490717]
[1730528058643,10.40438039,2510.8,2510.7,0.32393627]
[1730528059247,10.40438039,2510.8,2510.7,0.12459087]
[1730528060134,13.61218039,2510.8,2510.7,0.12459087]
[1730528061245,13.33328039,2510.8,2510.4,0.27893]
[1730528061550,4.35553064,2510.5,2510.4,0.27893]
[1730528061844,4.35553064,2510.5,2510.4,1.0890637]
[1730528062045,4.80573064,2510.5,2510.4,1.0890637]
[1730528065250,4.80573064,2510.5,2510.4,1.0887151]
[1730528068746,4.80573064,2510.5,2510.4,1.08849003]
[1730528069240,4.80573064,2510.5,2510.4,0.27893]
[1730528069440,4.80573064,2510.5,2510.4,1.08843375]
[1730528069650,1.59793064,2510.5,2510.4,1.08843375]
[1730528070247,4.35553064,2510.6,2510.4,0.80950375]
[1730528070452,3.2078,2510.6,2510.5,1.13702]
[1730528070746,3.2078,2510.6,2510.5,1.94641154]
[1730528071652,4.35553064,2510.8,2510.5,1.66749154]
[1730528071843,4.35553064,2510.8,2510.7,0.2789]
[1730528072954,7.48943873,2510.8,2510.7,0.2789]
[1730528073149,7.48943873,2510.8,2510.7,0.40349012]
[1730528073848,4.28163873,2510.8,2510.7,0.40349012]
[1730528074047,7.48943873,2510.8,2510.7,0.40349012]
[1730528074442,4.28163873,2510.8,2510.7,0.40349012]
[1730528074654,7.48943873,2510.8,2510.7,0.40349012]
[1730528075055,4.28163873,2510.8,2510.7,0.40349012]
[1730528075758,7.48943873,2510.8,2510.7,0.40349012]
[1730528075948,7.48943873,2510.8,2510.7,0.40348872]
[1730528076148,4.28163873,2510.8,2510.7,0.40348872]
[1730528076353,7.48943873,2510.8,2510.7,0.40348872]
[1730528076553,4.28163873,2510.8,2510.7,0.40348872]
[1730528076756,7.48943873,2510.8,2510.7,0.40348872]
[1730528078165,4.28163873,2510.8,2510.7,0.40348872]
[1730528078752,7.48943873,2510.8,2510.7,0.40348872]
[1730528079659,7.48943873,2510.8,2510.7,0.2789]
[1730528079846,4.28163873,2510.8,2510.7,0.40348831]
[1730528080156,4.28163873,2510.8,2510.7,0.40348835]
[1730528080157,7.48943873,2510.8,2510.7,0.40348835]
[1730528081060,4.28163873,2510.8,2510.7,0.40348835]
[1730528081254,7.48943873,2510.8,2510.7,0.40348835]
[1730528082154,7.76832873,2510.8,2510.7,0.12458835]
[1730528083563,7.76832873,2510.8,2510.7,0.40348835]
[1730528084959,4.56052873,2510.8,2510.7,0.40348835]
[1730528085155,7.76832873,2510.8,2510.7,0.40348835]
[1730528086251,4.56052873,2510.8,2510.7,0.40348835]
[1730528086452,7.76832873,2510.8,2510.7,0.40348835]
[1730528086653,7.76832873,2510.8,2510.6,0.7071]
[1730528086961,3.13390809,2510.7,2510.6,0.7071]
[1730528087258,3.13390809,2510.7,2510.6,0.83169191]
[1730528087461,3.13390809,2510.7,2510.6,1.64132624]
[1730528087655,7.48943873,2510.8,2510.7,0.2789]
[1730528087964,7.48943873,2510.8,2510.7,0.40349191]
[1730528088157,4.35553064,2510.8,2510.7,0.40349191]
[1730528088655,4.35553064,2510.8,2510.7,0.12459191]
[1730528088859,4.35553064,2510.8,2510.7,0.40349191]
[1730528089264,7.48920714,2510.8,2510.7,0.40349191]
[1730528089856,7.76809714,2510.8,2510.7,0.40349191]
[1730528090159,7.76809714,2510.8,2510.7,0.12459191]
[1730528090549,4.56029714,2510.8,2510.7,0.12459191]
[1730528090755,7.76809714,2510.8,2510.7,0.12459191]
[1730528090956,7.48920714,2510.8,2510.7,0.12459191]
[1730528091161,7.48920714,2510.8,2510.7,0.2789]
[1730528091963,7.48920714,2510.8,2510.7,1.01389849]
[1730528092864,7.76809714,2510.8,2510.7,0.73499849]
[1730528094157,4.56029714,2510.8,2510.7,0.93434204]
[1730528094455,7.76809714,2510.8,2510.7,0.93434204]
[1730528095963,7.76809714,2510.8,2510.7,0.32393408]
[1730528096267,1.42662064,2510.8,2510.7,0.32393408]
[1730528096761,4.63442064,2510.8,2510.7,0.32393408]
[1730528097159,1.42662064,2510.8,2510.7,0.32393408]
[1730528097463,4.63442064,2510.8,2510.7,0.32393408]
[1730528099368,4.63442064,2510.8,2510.7,0.93468054]
[1730528100770,4.63442064,2510.8,2510.7,0.9348248]
[1730528102161,1.42662064,2510.8,2510.7,0.9348248]
[1730528102370,4.63442064,2510.8,2510.7,0.9348248]
[1730528103274,4.63442064,2510.8,2510.7,0.93501829]
[1730528103866,4.35553064,2510.8,2510.7,0.93501829]
[1730528104065,4.63442064,2510.8,2510.7,0.93501829]
[1730528105169,8.81768569,2510.8,2510.7,0.93501829]
[1730528105477,4.63442064,2510.8,2510.7,0.93501829]
[1730528105769,1.42662064,2510.8,2510.7,0.93501829]
[1730528105969,4.63442064,2510.8,2510.7,0.93501829]
[1730528106361,1.42662064,2510.8,2510.7,0.93501829]
[1730528106769,1.42662064,2510.8,2510.7,0.93501359]
[1730528106770,4.63442064,2510.8,2510.7,0.93501359]
[1730528108567,4.63442064,2510.8,2510.7,0.32394081]
[1730528108769,4.63442064,2510.8,2510.7,0.93500275]
[1730528109969,1.42662064,2510.8,2510.7,0.93500275]
[1730528110368,5.60988569,2510.8,2510.7,0.93500275]
[1730528110669,8.81768569,2510.8,2510.7,0.93500275]
[1730528112572,9.27938569,2510.8,2510.7,0.93500275]
[1730528113686,6.07158569,2510.8,2510.7,0.93500275]
[1730528113874,6.07158569,2510.8,2510.7,0.93518594]
[1730528114073,9.27938569,2510.8,2510.7,0.93518594]
[1730528117280,9.27938569,2510.8,2510.6,0.4282]
[1730528117584,9.27938569,2510.8,2510.7,0.93528412]
[1730528117771,9.27938569,2510.8,2510.6,0.4282]
[1730528117970,9.27938569,2510.8,2510.7,0.93530323]
[1730528118276,6.07158569,2510.8,2510.7,0.93530323]
[1730528118473,9.27938569,2510.8,2510.7,0.93530323]
[1730528121076,9.27938569,2510.8,2510.6,0.70711]
[1730528121381,9.27938569,2510.8,2510.7,0.81070097]
[1730528121681,9.27938569,2510.8,2510.7,0.93529542]
[1730528123073,6.07158569,2510.8,2510.7,0.93529542]
[1730528123273,9.27938569,2510.8,2510.7,0.93529542]
[1730528124683,9.27938569,2510.8,2510.7,0.73595678]
[1730528124984,9.27938569,2510.8,2510.7,0.93530788]
[1730528126082,9.27938569,2510.8,2510.3,0.70404]
[1730528126083,0.27893,2510.5,2510.3,0.70404]
[1730528126278,7.49407509,2510.4,2510.3,0.4251]
[1730528126473,4.35553064,2510.4,2510.3,2.74229238]
[1730528128176,7.49323966,2510.4,2510.3,2.74229238]
[1730528128578,7.49323966,2510.4,2510.3,2.13088205]
[1730528128776,7.49323966,2510.4,2510.3,2.74193058]
[1730528129586,4.35553064,2510.4,2510.3,2.74193058]
[1730528130386,1.14773064,2510.4,2510.3,2.74193058]
[1730528130686,1.14773064,2510.4,2510.3,1.15262551]
[1730528130687,4.63446064,2510.4,2510.3,1.15262551]
[1730528130887,4.63446064,2510.4,2510.3,2.74168808]
[1730528131080,4.35553064,2510.4,2510.3,2.74168808]
[1730528131276,4.28461199,2510.4,2510.3,2.74168808]
[1730528131678,7.49241199,2510.4,2510.3,2.74168808]
[1730528131882,7.77134199,2510.4,2510.3,2.46265297]
[1730528132088,4.63446064,2510.4,2510.3,2.46265616]
[1730528132286,7.77110591,2510.4,2510.3,2.2134388]
[1730528132483,7.77110591,2510.4,2510.3,2.74159526]
[1730528132484,7.49217591,2510.4,2510.3,2.74159526]
[1730528133486,7.49217591,2510.4,2510.3,2.4923788]
[1730528133698,7.49217591,2510.4,2510.3,2.74158507]
[1730528134087,7.49217591,2510.4,2510.3,2.4923788]
[1730528134387,7.49217591,2510.4,2510.3,1.51455267]
[1730528135096,4.28437591,2510.4,2510.3,1.51455267]
[1730528135293,7.77110591,2510.4,2510.3,1.03624133]
[1730528135486,4.35553064,2510.4,2510.3,1.23561641]
[1730528135686,7.49160576,2510.4,2510.3,1.23561641]
[1730528135986,7.49159741,2510.4,2510.3,1.23561641]
[1730528136187,7.49158616,2510.4,2510.3,1.23561641]
[1730528136582,7.77051616,2510.4,2510.3,1.23561641]
[1730528136892,4.63446064,2510.4,2510.3,1.23561641]
[1730528137090,7.49143648,2510.4,2510.3,1.23561641]
[1730528137480,7.77036648,2510.4,2510.3,1.23561641]
[1730528137686,7.77036648,2510.4,2510.3,0.68232515]
[1730528137687,5.05246064,2510.4,2510.3,0.68232515]
[1730528137888,5.05246064,2510.4,2510.3,1.10882515]
[1730528138193,5.05246064,2510.4,2510.3,1.23343444]
[1730528138391,8.71478723,2510.4,2510.3,1.23343444]
[1730528139092,8.71478723,2510.4,2510.3,0.75048831]
[1730528139292,5.05246064,2510.4,2510.3,0.4265]
[1730528139494,5.05246064,2510.4,2510.3,0.75048954]
[1730528139695,9.03566064,2510.4,2510.3,0.32398954]
[1730528139894,9.03566064,2510.4,2510.3,0.12461136]
[1730528140094,12.69798723,2510.4,2510.3,0.12461136]
[1730528142097,12.69798723,2510.4,2510.3,0.57771136]
[1730528142804,8.29678723,2510.4,2510.3,0.57771136]
[1730528142999,4.63446064,2510.4,2510.3,0.57771136]
[1730528146195,4.63446064,2510.4,2510.3,0.57771224]
[1730528147192,8.29678723,2510.4,2510.3,0.57771224]
[1730528147398,4.63446064,2510.4,2510.3,0.57771224]
[1730528147601,8.29678723,2510.4,2510.3,0.57771224]
[1730528147797,5.08898723,2510.4,2510.3,0.57771224]
[1730528148097,8.29678723,2510.4,2510.3,0.57771224]
[1730528149200,4.63446064,2510.4,2510.3,0.57771224]
[1730528149601,4.63446064,2510.4,2510.3,0.12461224]
[1730528149803,8.29678723,2510.4,2510.3,0.12461224]
[1730528150190,8.29678723,2510.4,2510.1,0.72647]
[1730528150392,1.14773064,2510.2,2510.1,0.72647]
[1730528150598,1.14773064,2510.2,2510.1,1.53538605]
[1730528150801,1.14773064,2510.2,2510.1,1.66000292]
[1730528151806,4.35553064,2510.2,2510.1,1.66000292]
[1730528153698,4.35553064,2510.2,2510.1,1.65999914]
[1730528155612,1.14773064,2510.2,2510.1,1.65999914]
[1730528156209,1.14773064,2510.2,2510.1,1.65999931]
[1730528156510,4.35553064,2510.2,2510.1,1.65999931]
[1730528157400,4.35553064,2510.2,2510.1,0.72647]
[1730528157604,4.35553064,2510.2,2510.1,1.65993364]
[1730528158005,4.35553064,2510.2,2510.1,1.38096364]
[1730528158202,4.63448064,2510.2,2510.1,1.38096364]
[1730528158410,4.35553064,2510.2,2510.1,1.38096364]
[1730528158609,4.35553064,2510.2,2510.1,1.65993364]
[1730528160504,1.14773064,2510.2,2510.1,1.65993364]
[1730528160706,1.14773064,2510.2,2510.1,0.72647]
[1730528160911,1.14773064,2510.2,2510.1,1.5355012]
[1730528161106,1.14773064,2510.2,2510.1,1.66011642]
[1730528161311,1.42668064,2510.2,2510.1,1.38117296]
[1730528161511,1.42668064,2510.2,2510.1,1.66014296]
[1730528161814,4.56054248,2510.2,2510.1,0.12461522]
[1730528162019,5.95775279,2510.2,2510.1,0.12461522]
[1730528162310,5.95775279,2510.2,2509.9,0.4558]
[1730528162311,0.27898,2510.0,2509.9,0.4558]
[1730528162517,7.76870625,2510.0,2509.9,1.38963472]
[1730528162719,7.76870625,2510.0,2509.9,0.12462596]